bitfinex/quotes_ETHUSD_20220105
["timestamp","ask_amount","ask_price","bid_price","bid_amount"]
[1641341222758,1.20636112,3771.6,3770.4,9.56818938]
[1641341222759,1.20636112,3771.6,3770.5,5.8]
[1641341222960,0.48890982,3771.0,3770.7,0.66281]
[1641341223159,6.98810537,3772.2,3770.8,5.8]
[1641341223160,1.20636112,3772.2,3770.8,5.8]
[1641341223359,1.20636112,3772.2,3770.8,6.5275]
[1641341223559,0.00397896,3771.5,3770.9,2.66406992]
[1641341223763,0.00397896,3771.5,3770.9,2.96406992]
[1641341224059,0.00341054,3771.4,3771.1,2.6511532]
[1641341224461,0.00284212,3771.3,3771.2,0.6]
[1641341224661,0.00284212,3771.3,3771.2,7.84224617]
[1641341225599,1.10920324,3772.5,3771.3,5.8]
[1641341225798,1.10920324,3772.5,3772.3,1.02708683]
[1641341225999,1.10920324,3772.5,3772.4,1.30366954]
[1641341226403,1.11602432,3772.5,3772.4,1.30366954]
[1641341226604,0.9220009,3773.8,3772.6,5.8]
[1641341226801,0.9220009,3773.8,3773.0,0.01255412]
[1641341227001,0.9220009,3773.8,3773.7,1.18708434]
[1641341227201,0.9220009,3773.8,3773.7,1.1745495]
[1641341227400,0.9293904,3773.8,3773.7,1.1745495]
[1641341227602,0.0073895,3773.8,3773.7,2.32281514]
[1641341229351,0.0073895,3773.8,3773.7,2.62281514]
[1641341229651,0.0073895,3773.8,3773.0,0.0596]
[1641341230053,0.00682108,3773.7,3772.8,1.1488]
[1641341230451,15.39,3774.4,3772.8,1.1488]
[1641341230452,0.00625266,3773.6,3772.8,1.1488]
[1641341230856,0.00568423,3773.5,3773.4,1.38019662]
[1641341231855,0.33768423,3774.5,3773.4,1.38019662]
[1641341232255,0.00511581,3774.4,3773.4,1.38019662]
[1641341232656,0.00454739,3774.3,3773.4,1.38019662]
[1641341233099,0.00397897,3774.2,3773.4,1.38019662]
[1641341233304,0.00397897,3774.2,3773.6,1.2153316]
[1641341233605,0.00341054,3774.1,3772.8,1.4488]
[1641341233801,0.00341054,3774.1,3772.9,0.6626204]
[1641341234003,0.00284212,3774.0,3772.9,0.96603094]
[1641341234201,0.00284212,3774.0,3773.0,0.00284211]
[1641341234400,0.0022737,3773.9,3773.0,0.00284211]
[1641341234602,0.0022737,3773.9,3772.7,1.03233584]
[1641341234800,0.00170527,3773.8,3772.7,1.03233584]
[1641341235001,0.00170527,3773.8,3773.2,1.28412483]
[1641341235202,0.00113685,3773.7,3773.2,1.28412483]
[1641341235506,0.00170527,3773.8,3773.3,0.00113684]
[1641341235907,0.00113685,3773.7,3773.3,0.00113684]
[1641341236303,0.00170527,3773.8,3773.3,0.00113684]
[1641341236663,15.39,3773.9,3773.3,0.00113684]
[1641341236664,0.00113685,3773.7,3773.3,0.00113684]
[1641341237062,0.00170527,3773.8,3773.3,1.2426665]
[1641341237462,0.00113685,3773.7,3773.3,1.2426665]
[1641341237862,0.00341054,3774.1,3773.3,0.00113684]
[1641341238269,0.00284212,3774.0,3773.9,1.32458823]
[1641341241312,0.00284212,3774.0,3773.9,6.25298786]
[1641341243012,0.00284212,3774.0,3773.9,6.26521361]
[1641341243013,4.212e-05,3774.0,3773.9,6.26521361]
[1641341243215,1.20656522,3774.8,3774.1,1.35208951]
[1641341243414,1.20656522,3774.8,3774.7,5.95069719]
[1641341243713,1.20656522,3774.8,3774.7,6.25069719]
[1641341243915,2.41138944,3775.5,3774.8,5.8]
[1641341244158,2.41138944,3775.5,3774.8,6.482]
[1641341244362,0.01891954,3775.2,3775.1,0.66211]
[1641341244663,0.01891954,3775.2,3775.1,0.8288]
[1641341244664,0.02574062,3775.2,3775.1,0.8288]
[1641341245559,0.02574062,3775.2,3775.1,1.1288]
[1641341245759,0.02574062,3775.2,3775.1,0.8288]
[1641341245960,0.02574062,3775.2,3775.1,1.1288]
[1641341246161,0.02574062,3775.2,3775.1,5.2288]
[1641341246360,0.00682108,3775.2,3775.1,5.2288]
[1641341247164,0.00682108,3775.2,3775.1,6.55294]
[1641341247361,0.00682108,3775.2,3775.1,7.85294]
[1641341247561,0.01891954,3775.6,3775.2,5.8]
[1641341247762,0.01891954,3775.6,3775.4,0.66205]
[1641341248002,0.01891954,3775.6,3775.5,2.61594269]
[1641341248203,6.89584456,3777.1,3775.5,2.35]
[1641341248406,0.0022737,3775.6,3775.5,5.02702276]
[1641341248608,4.48445512,3777.1,3775.7,1.32392]
[1641341248805,0.00795792,3777.0,3775.9,1.41274003]
[1641341249104,4.48445512,3777.1,3776.1,0.66196]
[1641341249105,0.0073895,3776.9,3776.1,0.66196]
[1641341249303,0.0073895,3776.9,3776.1,0.96196]
[1641341249503,4.48445512,3777.1,3776.8,1.05405981]
[1641341249707,4.48445512,3777.1,3776.9,1.09489659]
[1641341249905,0.00795792,3777.0,3776.9,1.09489659]
[1641341250505,0.00795792,3777.0,3776.9,1.39489659]
[1641341250804,0.00795792,3777.0,3776.9,4.50998659]
[1641341251004,0.00795792,3777.0,3776.9,4.40862287]
[1641341251203,0.00795792,3777.0,3776.9,2.05859659]
[1641341251404,0.00795792,3777.0,3776.9,4.45190032]
[1641341252264,0.00795792,3777.0,3776.9,4.25859659]
[1641341252863,0.00795792,3777.0,3776.9,3.97689659]
[1641341253065,0.00795792,3777.0,3776.9,1.09489659]
[1641341255065,0.00795792,3777.0,3776.9,4.04489659]
[1641341256109,0.00795792,3777.0,3776.9,1.09489659]
[1641341256307,0.00795792,3777.0,3776.9,1.39489659]
[1641341257107,0.00795792,3777.0,3776.9,1.09489659]
[1641341258306,0.00795792,3777.0,3776.9,2.22691774]
[1641341258507,0.00795792,3777.0,3776.9,1.09489659]
[1641341258708,0.00795792,3777.0,3776.9,1.39489659]
[1641341258907,0.00795792,3777.0,3776.9,1.09489659]
[1641341259353,0.00795792,3777.0,3776.3,1.3239591]
[1641341259558,0.00795792,3777.0,3775.9,1.23084105]
[1641341259752,0.0073895,3776.9,3775.9,1.23084105]
[1641341260154,0.00682108,3776.8,3775.9,1.23084105]
[1641341260551,0.00625265,3776.7,3775.9,1.23084105]
[1641341260951,0.00568423,3776.6,3775.9,1.53084105]
[1641341261154,0.00568423,3776.6,3776.0,0.6621038]
[1641341261357,0.00511581,3776.5,3776.0,0.6621038]
[1641341261551,0.00511581,3776.5,3776.1,1.68221649]
[1641341261754,0.00454738,3776.4,3776.1,1.38221649]
[1641341262052,3.04733806,3777.3,3776.1,1.38221649]
[1641341262053,0.00397896,3776.3,3776.1,1.38221649]
[1641341262253,0.00397896,3776.3,3775.4,1.3242642]
[1641341262452,0.00397896,3776.3,3774.8,3.2983]
[1641341262453,0.01595978,3776.2,3774.8,3.2983]
[1641341262656,3.08514568,3776.2,3774.4,3.9874]
[1641341262916,0.00284211,3776.1,3774.9,0.00397897]
[1641341263117,0.00284211,3776.1,3774.5,0.00625266]
[1641341263313,0.00227369,3776.0,3775.6,1.1749323]
[1641341263715,0.00170527,3775.9,3775.6,1.1749323]
[1641341264116,0.00113684,3775.8,3775.6,1.1749323]
[1641341264515,2.55231684,3776.0,3775.6,1.1749323]
[1641341264715,0.00227369,3776.0,3775.6,1.1749323]
[1641341264915,0.00170527,3775.9,3775.6,1.1749323]
[1641341265319,0.9220009,3776.9,3775.6,1.1749323]
[1641341265320,0.00113684,3775.8,3775.6,1.1749323]
[1641341265718,0.38882108,3776.8,3775.6,1.1749323]
[1641341265916,0.38882108,3776.8,3776.0,1.3278928]
[1641341266119,0.00625265,3776.7,3776.0,1.3278928]
[1641341266516,0.00568423,3776.6,3776.0,1.3278928]
[1641341266957,0.382,3777.3,3776.0,2.2899817]
[1641341266958,0.00511581,3776.5,3776.0,2.2899817]
[1641341267156,0.00511581,3776.5,3776.0,1.9899817]
[1641341267355,0.00454738,3776.4,3776.0,1.9899817]
[1641341267757,0.00397896,3776.3,3776.0,2.2899817]
[1641341268063,0.382,3777.3,3776.0,2.2899817]
[1641341268064,0.00341054,3776.2,3776.0,2.2899817]
[1641341268465,0.00284211,3776.1,3776.0,2.2899817]
[1641341268856,0.00284211,3776.1,3776.0,2.5899817]
[1641341269058,0.00284211,3776.1,3776.0,6.8399817]
[1641341269759,0.00284211,3776.1,3776.0,7.5019617]
[1641341272101,4.211e-05,3776.1,3776.0,7.8839617]
[1641341272502,0.01891954,3776.5,3776.3,0.66182]
[1641341272700,10.35127356,3778.3,3777.2,1.9854275]
[1641341272701,3.8769,3778.3,3777.2,1.9854275]
[1641341272902,7.6437,3778.9,3777.2,2.9210275]
[1641341273106,3.8784,3778.9,3777.2,2.2592183]
[1641341273302,0.01421059,3778.6,3777.2,2.2592183]
[1641341273503,0.01421059,3778.6,3777.8,1.39558616]
[1641341273703,0.01364217,3778.5,3777.9,1.17879845]
[1641341274149,0.01307374,3778.4,3777.9,1.17879845]
[1641341274549,0.01250532,3778.3,3777.9,1.17879845]
[1641341274749,16.01431532,3779.0,3778.7,1.15257598]
[1641341275152,4.48403925,3778.9,3778.7,1.15257598]
[1641341275352,5.48403925,3778.9,3778.7,1.15257598]
[1641341275553,0.00284212,3778.8,3778.7,1.15257598]
[1641341275952,0.00284212,3778.8,3778.0,0.00170527]
[1641341276253,0.00227369,3778.7,3778.0,0.00170527]
[1641341276453,0.00227369,3778.7,3778.1,1.16836951]
[1641341276653,0.00170527,3778.6,3778.1,1.16836951]
[1641341277053,0.00113685,3778.5,3778.1,1.16836951]
[1641341277454,0.00284212,3778.8,3778.1,1.16836951]
[1641341277914,15.39,3779.2,3778.1,1.92876951]
[1641341277915,0.00227369,3778.7,3778.1,1.92876951]
[1641341278309,0.00170527,3778.6,3778.1,1.92876951]
[1641341278708,0.00113685,3778.5,3778.1,1.92876951]
[1641341278907,0.00113685,3778.5,3778.2,0.661717]
[1641341279107,0.00397896,3779.0,3778.2,0.661717]
[1641341279510,0.00397896,3779.0,3778.5,0.66158]
[1641341280008,0.00397896,3779.0,3778.6,0.99878898]
[1641341280211,0.00397896,3779.0,3778.7,1.06469735]
[1641341280713,0.00397896,3779.0,3778.8,0.66148]
[1641341281309,0.00397896,3779.0,3778.8,1.04348]
[1641341281754,0.00397896,3779.0,3778.9,7.067851]
[1641341281958,0.00397896,3779.0,3778.9,8.024151]
[1641341282357,0.00397896,3779.0,3778.9,8.406151]
[1641341282755,0.01870903,3779.7,3779.0,5.7539]
[1641341282955,0.01870903,3779.7,3779.4,0.66127]
[1641341283156,0.00341054,3779.6,3779.5,3.09465765]
[1641341283355,4.48062871,3780.6,3779.6,5.15]
[1641341283557,4.48062871,3780.6,3779.7,2.90445669]
[1641341283756,0.00511582,3780.5,3780.3,1.30390808]
[1641341284059,0.00454739,3780.4,3780.3,1.30390808]
[1641341284554,0.00454739,3780.4,3780.3,1.96521408]
[1641341284956,0.00454739,3780.4,3780.3,3.23837937]
[1641341285155,0.00454739,3780.4,3780.3,3.89962937]
[1641341285626,0.018709,3780.8,3780.3,3.89962937]
[1641341285627,0.018709,3780.8,3780.4,3.35]
[1641341285926,0.018709,3780.8,3780.4,0.8583]
[1641341285927,0.00170527,3780.7,3780.4,0.8583]
[1641341286325,0.00113685,3780.6,3780.4,0.8583]
[1641341286727,0.00284212,3780.9,3780.4,0.8583]
[1641341286927,0.00284212,3780.9,3780.3,3.62037937]
[1641341287126,0.0022737,3780.8,3780.3,3.62037937]
[1641341287425,0.00284212,3780.9,3780.3,3.23837937]
[1641341287826,6.14,3781.0,3780.3,3.23837937]
[1641341287827,0.0022737,3780.8,3780.3,3.23837937]
[1641341288227,0.00284212,3780.9,3780.3,3.23837937]
[1641341288630,0.0022737,3780.8,3780.3,3.53837937]
[1641341289031,0.00284212,3780.9,3780.3,1.27316529]
[1641341289482,0.0022737,3780.8,3780.3,1.27316529]
[1641341289877,0.00284212,3780.9,3780.3,1.27316529]
[1641341290280,3.47520912,3781.5,3780.3,1.27316529]
[1641341290482,3.22843104,3781.5,3780.4,0.0022737]
[1641341290682,2.98516974,3780.9,3780.4,0.0022737]
[1641341291580,4.2426806,3781.2,3780.4,0.0022737]
[1641341292581,2.55007756,3781.6,3780.3,0.00284212]
[1641341292582,1.25751086,3781.5,3780.3,0.00284212]
[1641341292782,1.20751086,3781.5,3780.7,1.17391505]
[1641341293004,0.00341054,3781.4,3780.7,1.17391505]
[1641341293504,0.00284211,3781.3,3780.8,1.17489221]
[1641341293813,3.44220034,3782.0,3780.8,1.17489221]
[1641341293814,0.00227369,3781.2,3780.8,1.17489221]
[1641341294204,4.66185089,3781.4,3780.8,1.17489221]
[1641341294405,4.66185089,3781.7,3780.8,1.17489221]
[1641341294606,0.00284211,3781.3,3780.7,1.47391505]
[1641341294806,0.00454738,3781.6,3781.3,1.12578512]
[1641341295005,4.66185089,3781.7,3780.7,1.47391505]
[1641341295405,0.00454738,3781.6,3780.7,1.47391505]
[1641341295605,0.00454738,3781.6,3780.7,0.3]
[1641341295805,0.00397896,3781.5,3780.2,2.55913274]
[1641341296006,5.6505197,3781.5,3780.2,0.00341054]
[1641341296208,5.6505197,3781.5,3780.3,0.00284212]
[1641341296209,1.67668115,3781.2,3780.3,0.00284212]
[1641341296409,1.67668115,3781.2,3780.2,1.16367373]
[1641341296410,2.83506303,3781.1,3780.2,1.16367373]
[1641341296666,1.47838642,3781.2,3780.3,0.00284212]
[1641341296860,1.47838642,3781.2,3780.3,0.00454739]
[1641341297359,0.382,3781.4,3780.3,0.66583149]
[1641341297560,2.98516974,3781.1,3781.0,1.43924806]
[1641341297759,0.00113684,3781.3,3781.0,1.43924806]
[1641341298158,0.00170527,3781.4,3781.0,1.43924806]
[1641341299259,0.00170527,3781.4,3780.7,1.02541067]
[1641341299660,0.00170527,3781.4,3780.8,0.00170527]
[1641341300262,0.00170527,3781.4,3781.1,1.1412855]
[1641341303407,0.00170527,3781.4,3780.8,0.00170527]
[1641341303607,0.382,3781.3,3780.8,0.00170527]
[1641341303809,15.39,3781.2,3780.1,0.00568424]
[1641341304007,0.382,3781.1,3779.6,0.00852636]
[1641341304263,15.39,3781.0,3779.6,0.00852636]
[1641341304459,0.66151,3780.8,3780.4,1.43161947]
[1641341304658,0.66151,3780.7,3780.4,1.43161947]
[1641341304858,0.66151,3780.7,3780.5,0.00341054]
[1641341305262,21.522,3780.6,3780.5,0.00341054]
[1641341305459,21.522,3780.6,3779.4,0.0096632]
[1641341305460,21.6324,3780.6,3779.4,0.0096632]
[1641341305659,1.32316,3780.2,3779.4,0.0096632]
[1641341306061,15.39,3780.2,3779.4,0.0096632]
[1641341306262,9.5239576,3780.1,3779.4,0.0096632]
[1641341306461,9.5239576,3780.1,3779.1,0.01136847]
[1641341306965,2.98516974,3780.0,3779.1,0.01136847]
[1641341307363,5.53085438,3780.0,3779.1,0.01136847]
[1641341307761,1.67615915,3780.2,3779.2,1.23344056]
[1641341307762,2.99931915,3780.2,3779.2,1.23344056]
[1641341308016,2.51528411,3780.1,3779.2,1.23344056]
[1641341308215,2.51528411,3780.1,3779.3,0.01023163]
[1641341308421,0.382,3780.0,3779.3,0.01023163]
[1641341308616,15.39,3779.8,3779.1,0.01136847]
[1641341308818,0.66176,3779.6,3778.2,0.01648428]
[1641341309117,4.6004518,3779.5,3778.2,0.01648428]
[1641341309316,4.6004518,3779.5,3777.0,3.71336635]
[1641341309317,15.89,3779.4,3777.7,1.26117094]
[1641341309520,0.66183,3778.8,3778.3,1.46690536]
[1641341309716,3.16400042,3778.8,3778.3,1.46690536]
[1641341309916,3.16400042,3778.8,3778.4,0.01534744]
[1641341310118,0.66183,3778.8,3778.4,0.01534744]
[1641341310315,2.49426807,3778.7,3778.4,0.01534744]
[1641341310517,0.66183,3778.8,3778.4,0.01534744]
[1641341310817,3.15572003,3778.7,3778.4,0.01534744]
[1641341311115,3.15572003,3778.7,3777.8,0.01875798]
[1641341311116,0.66188,3778.6,3777.8,0.01875798]
[1641341311758,0.66188,3778.4,3777.8,0.01875798]
[1641341311960,1.32377,3778.4,3777.8,1.34703309]
[1641341312360,1.32377,3778.4,3777.9,0.01818955]
[1641341312761,1.98569,3778.4,3777.9,0.01818955]
[1641341313160,2.0,3778.3,3777.3,1.00070678]
[1641341313362,0.00227369,3778.3,3777.3,1.00070678]
[1641341313562,0.66364527,3778.2,3777.3,1.00070678]
[1641341313961,0.00113684,3778.1,3777.3,1.00070678]
[1641341314162,0.00113684,3778.1,3777.9,1.48226474]
[1641341314963,0.00113684,3778.1,3778.0,1.36700145]
[1641341317409,0.00113684,3778.1,3778.0,3.61700145]
[1641341317606,0.00113684,3778.1,3778.0,1.36700145]
[1641341318007,0.00113684,3778.1,3778.0,1.66700145]
[1641341318209,0.00113684,3778.1,3778.0,4.78864965]
[1641341318408,0.00113684,3778.1,3778.0,11.28574965]
[1641341318610,0.00113684,3778.1,3778.0,12.28574965]
[1641341319013,4.8181,3778.8,3778.1,5.7511]
[1641341319269,0.9220009,3780.2,3779.2,0.66137]
[1641341319465,1.67615915,3780.5,3779.4,1.36609163]
[1641341319665,3.9729,3780.7,3779.7,0.66138]
[1641341319666,0.01136847,3780.1,3779.7,0.66138]
[1641341320068,0.01080005,3780.0,3779.7,0.66138]
[1641341320467,0.01023162,3779.9,3779.8,5.90439016]
[1641341320671,0.01023162,3779.9,3779.8,7.22707726]
[1641341320864,0.01023162,3779.9,3779.8,2.32707726]
[1641341321366,0.01023162,3779.9,3779.8,8.37707726]
[1641341321667,0.01023162,3779.9,3779.8,9.37707726]
[1641341321864,0.01023162,3779.9,3779.8,2.70907726]
[1641341322067,0.01023162,3779.9,3779.8,1.68639016]
[1641341322264,0.01023162,3779.9,3779.8,1.38639016]
[1641341322908,0.01023162,3779.9,3779.8,1.00439016]
[1641341323110,0.01023162,3779.9,3779.7,0.02839963]
[1641341323309,2.99596674,3779.9,3779.7,0.02839963]
[1641341323513,2.99596674,3779.9,3779.4,1.36609163]
[1641341323514,0.0096632,3779.8,3779.4,1.36609163]
[1641341324010,0.00909478,3779.7,3779.4,1.36609163]
[1641341324411,0.00852635,3779.6,3779.4,1.36609163]
[1641341324815,0.00795793,3779.5,3779.4,1.36609163]
[1641341325013,2.99369305,3779.5,3779.4,1.36609163]
[1641341327656,0.00795793,3779.5,3779.4,1.36609163]
[1641341329159,0.00795793,3779.5,3779.4,1.66609163]
[1641341331805,3.8508,3780.9,3779.5,5.75]
[1641341332005,3.8508,3780.9,3780.2,0.6613]
[1641341332206,0.00738951,3780.8,3780.0,1.3225682]
[1641341332413,2.99276914,3780.8,3780.0,1.3225682]
[1641341332604,0.00682108,3780.7,3780.0,1.3225682]
[1641341333010,0.00625266,3780.6,3780.1,1.46694694]
[1641341333306,1.24533316,3781.5,3780.3,0.6613317]
[1641341333307,0.00568424,3780.5,3780.3,0.6613317]
[1641341333706,0.00511581,3780.4,3780.3,0.6613317]
[1641341333904,0.20311612,3781.3,3780.8,1.24210583]
[1641341334365,0.00454739,3781.2,3780.8,1.24210583]
[1641341334562,2.98992478,3781.2,3780.8,1.24210583]
[1641341334763,0.00397897,3781.1,3780.8,1.24210583]
[1641341334961,0.00397897,3781.1,3780.9,1.46243691]
[1641341335161,0.00341054,3781.0,3780.9,1.46243691]
[1641341335962,2.98878793,3781.0,3780.9,1.46243691]
[1641341337162,2.98878793,3781.0,3780.0,1.3226129]
[1641341337362,2.67218548,3780.9,3780.0,1.3226129]
[1641341337661,2.98878793,3781.0,3780.1,0.00170527]
[1641341337662,0.0022737,3780.8,3780.1,0.00170527]
[1641341337916,2.98765109,3780.8,3780.1,0.00170527]
[1641341338113,0.00170527,3780.7,3779.8,0.00341054]
[1641341338311,0.66314527,3780.7,3780.3,1.24281634]
[1641341338511,0.00113685,3780.6,3780.3,1.24281634]
[1641341340011,2.98651424,3780.6,3780.3,1.24281634]
[1641341341315,3.64798424,3780.6,3780.3,1.24281634]
[1641341341973,2.98651424,3780.6,3780.3,1.24281634]
[1641341343172,3.64798424,3780.6,3780.3,1.24281634]
[1641341343571,2.98651424,3780.6,3780.3,1.24281634]
[1641341344771,0.00113685,3780.6,3780.3,1.24281634]
[1641341344972,0.00113685,3780.6,3780.3,2.26192589]
[1641341346009,2.98537739,3780.5,3780.3,2.26192589]
[1641341346408,0.00113685,3780.6,3780.3,1.24281634]
[1641341347810,2.98651424,3780.6,3779.8,0.661416]
[1641341348010,2.98651424,3780.6,3779.7,0.00397896]
[1641341348011,5.53278593,3780.6,3779.7,0.00397896]
[1641341348210,5.53278593,3780.6,3779.9,0.00284212]
[1641341348211,0.66154,3780.3,3779.9,0.00284212]
[1641341348413,17.95304389,3780.2,3779.2,0.00682108]
[1641341348612,15.39,3780.1,3778.9,0.00852635]
[1641341348812,3.00364438,3780.0,3779.1,1.09041281]
[1641341349012,3.30364438,3780.0,3779.1,1.09041281]
[1641341349263,0.66166,3779.6,3779.2,0.00682108]
[1641341349860,2.98537739,3779.5,3779.2,0.00682108]
[1641341350662,2.98537739,3779.5,3778.7,0.0096632]
[1641341350863,2.98537739,3779.5,3778.4,0.01136847]
[1641341350864,0.66166,3779.2,3778.4,0.01136847]
[1641341351065,0.66166,3779.2,3778.3,0.67356689]
[1641341351263,0.66166,3779.2,3778.9,1.37378237]
[1641341351663,0.66166,3779.2,3779.0,0.00795793]
[1641341352910,1.32332,3779.5,3779.0,0.00795793]
[1641341352911,0.6616,3779.5,3779.0,0.00795793]
[1641341353310,0.0992,3779.7,3779.0,0.00795793]
[1641341353511,4.2525,3779.8,3779.0,0.00795793]
[1641341353512,0.382,3779.8,3779.0,0.00795793]
[1641341354111,2.98616118,3779.7,3779.0,0.00795793]
[1641341354513,2.98616118,3779.7,3779.0,0.66954053]
[1641341354915,2.98616118,3779.7,3779.1,0.0073895]
[1641341355315,2.98616118,3779.7,3779.0,0.00795793]
[1641341355613,2.98616118,3779.7,3779.2,1.3230303]
[1641341356014,2.98616118,3779.7,3779.6,1.15553037]
[1641341356217,3.64763118,3780.3,3779.6,2.33766897]
[1641341356413,3.64763118,3780.3,3779.6,2.34221636]
[1641341356653,0.66147,3780.3,3779.7,0.00397896]
[1641341356852,0.66147,3780.3,3780.2,1.28399527]
[1641341357252,0.00113685,3780.6,3780.2,1.28513211]
[1641341357653,0.00113685,3780.6,3780.3,0.6613218]
[1641341358653,0.00113685,3780.6,3780.5,1.25583571]
[1641341359054,0.00113685,3780.6,3780.5,4.15583571]
[1641341359255,0.00113685,3780.6,3780.5,1.55583571]
[1641341360513,0.00113685,3780.6,3780.5,1.25583571]
[1641341362613,0.58069187,3781.8,3780.6,3.4]
[1641341362809,0.58069187,3781.8,3780.6,4.06125]
[1641341363011,0.00568423,3781.6,3780.9,0.6612453]
[1641341363411,0.00511581,3781.5,3781.0,1.3325115]
[1641341363813,1.24533316,3781.9,3781.2,0.66113]
[1641341363814,0.00454739,3781.4,3781.2,0.66113]
[1641341364265,0.00397896,3781.3,3781.2,0.66113]
[1641341365665,0.00397896,3781.3,3781.1,1.90201216]
[1641341365865,0.00397896,3781.3,3781.1,1.24083866]
[1641341366065,0.00341054,3781.2,3781.1,1.24083866]
[1641341367569,0.00341054,3781.2,3781.1,1.54083866]
[1641341369607,0.00341054,3781.2,3781.0,2.6548377]
[1641341369807,0.00341054,3781.2,3780.5,0.04488419]
[1641341370012,0.382,3782.2,3780.4,3.6981]
[1641341370013,0.00284212,3781.1,3780.4,3.6981]
[1641341370210,0.00284212,3781.1,3780.0,0.0565]
[1641341370417,0.00227369,3781.0,3780.0,0.0565]
[1641341370607,0.00227369,3781.0,3780.2,0.6613673]
[1641341370807,1.22441527,3781.6,3780.6,1.08164083]
[1641341371013,0.66133,3781.1,3780.3,0.00341054]
[1641341371208,0.66133,3781.1,3778.7,1.32268]
[1641341371209,0.66133,3781.1,3780.7,0.00113685]
[1641341371408,0.66133,3781.1,3780.1,0.00454739]
[1641341371694,0.66133,3781.1,3779.9,0.00568424]
[1641341372491,0.66133,3781.1,3780.6,1.31712014]
[1641341372693,2.98496463,3781.0,3780.6,1.31712014]
[1641341372891,2.98496463,3781.0,3780.7,0.00113685]
[1641341374697,2.98723832,3781.3,3780.7,0.00113685]
[1641341374893,2.98723832,3781.3,3781.2,1.48682908]
[1641341375094,2.98496463,3781.3,3781.2,1.48682908]
[1641341375296,1.32262,3781.5,3781.2,1.48682908]
[1641341375708,0.00284212,3781.4,3781.2,1.48682908]
[1641341376210,0.00227369,3781.3,3781.2,1.48682908]
[1641341378611,0.00227369,3781.3,3781.2,3.80203831]
[1641341378814,0.00227369,3781.3,3781.2,4.10203831]
[1641341379962,0.00227369,3781.3,3781.2,4.11796795]
[1641341380163,0.00227369,3781.3,3781.2,4.49996795]
[1641341380562,0.00227369,3781.3,3781.2,4.51642652]
[1641341381163,0.00227369,3781.3,3781.2,2.16882908]
[1641341381563,0.00227369,3781.3,3781.2,4.5036146]
[1641341381965,0.00227369,3781.3,3781.2,5.5036146]
[1641341385611,0.00227369,3781.3,3781.2,5.8036146]
[1641341386413,0.01809146,3782.1,3781.4,15.39]
[1641341386672,4.47590146,3783.3,3781.8,0.66076]
[1641341386970,4.47590146,3783.3,3783.1,1.04815563]
[1641341387171,4.47590146,3783.3,3783.2,1.16175894]
[1641341387571,0.0073895,3783.3,3783.2,1.16175894]
[1641341389673,2.99055755,3783.3,3783.2,1.16175894]
[1641341391519,0.0073895,3783.3,3783.2,1.16175894]
[1641341392719,2.99056216,3783.3,3783.2,1.16175894]
[1641341392922,2.99056216,3783.3,3782.1,1.3219338]
[1641341393123,2.99056216,3783.3,3781.5,0.02839963]
[1641341393124,15.39,3783.2,3781.5,0.02839963]
[1641341393319,15.77882108,3783.2,3781.4,4.3313]
[1641341393518,0.00625266,3783.1,3781.6,0.0022737]
[1641341393721,0.382,3783.0,3781.5,0.00284212]
[1641341393919,1.32226,3782.6,3782.2,1.5129495]
[1641341394180,1.98338,3782.6,3782.2,1.5129495]
[1641341394380,0.00284212,3782.5,3781.7,1.3220508]
[1641341394780,0.00227369,3782.4,3781.8,0.00113685]
[1641341395182,0.00170527,3782.3,3781.8,0.00113685]
[1641341395582,1.3222,3782.7,3781.8,0.00113685]
[1641341395583,0.00113684,3782.2,3781.9,1.51620916]
[1641341396084,0.00341054,3782.6,3781.9,1.51620916]
[1641341396382,0.00284212,3782.5,3781.9,1.51620916]
[1641341396781,0.00227369,3782.4,3781.9,1.51620916]
[1641341397180,2.98371048,3782.9,3781.9,1.51620916]
[1641341397181,0.66282527,3782.3,3781.9,1.51620916]
[1641341397581,0.00113684,3782.2,3781.9,1.51620916]
[1641341398918,0.00113684,3782.2,3782.0,0.6610591]
[1641341400320,0.00113684,3782.2,3781.9,1.51620916]
[1641341400917,0.00113684,3782.2,3781.8,0.00113685]
[1641341401322,0.66122,3781.8,3781.2,0.00454739]
[1641341401519,2.54135244,3781.7,3780.8,0.00682108]
[1641341401813,1.32258,3781.6,3780.7,0.00738951]
[1641341402106,2.46373726,3781.5,3780.5,0.00852635]
[1641341402310,2.46373726,3781.5,3780.4,0.5357593]
[1641341402514,0.6613,3781.2,3780.3,1.3225798]
[1641341402710,2.54434443,3781.1,3780.3,1.3225798]
[1641341402913,2.54775497,3781.1,3780.3,1.3225798]
[1641341403108,4.30646795,3781.4,3780.3,1.3225798]
[1641341403109,0.00284211,3781.0,3780.3,1.3225798]
[1641341403309,0.00284211,3781.0,3779.8,0.01232319]
[1641341403509,0.00227369,3780.9,3780.1,1.13954309]
[1641341403910,4.92401273,3781.6,3780.1,1.13954309]
[1641341403911,0.00170527,3780.8,3780.1,1.13954309]
[1641341404110,0.00170527,3780.8,3780.3,0.6613533]
[1641341404312,0.00113684,3780.7,3780.3,0.6613533]
[1641341404512,0.00113684,3780.7,3780.1,1.13954309]
[1641341404711,2.53113239,3780.9,3780.1,1.13954309]
[1641341404910,2.53113239,3780.9,3779.9,0.00341055]
[1641341404911,0.00227369,3780.9,3779.9,0.00341055]
[1641341405111,0.66144,3780.7,3779.9,0.00341055]
[1641341405313,0.66141,3780.6,3779.6,1.3228114]
[1641341405531,0.66141,3780.6,3779.7,0.00454739]
[1641341405927,0.66141,3780.6,3779.8,1.10326189]
[1641341406226,2.98379795,3780.5,3779.8,1.10326189]
[1641341406426,0.66145,3780.4,3779.8,1.10326189]
[1641341407023,2.98379795,3780.5,3779.8,1.10326189]
[1641341407625,1.98437,3780.7,3779.8,1.10326189]
[1641341407825,0.66147,3780.3,3779.8,1.10326189]
[1641341408029,2.98508985,3780.4,3779.8,1.40326189]
[1641341408427,1.24533316,3781.2,3779.8,1.40326189]
[1641341408428,0.00113684,3780.7,3779.8,1.40326189]
[1641341408827,0.00341054,3781.1,3780.8,1.11529272]
[1641341409186,0.00284211,3781.0,3780.8,1.11529272]
[1641341409577,0.00227369,3780.9,3780.1,0.382]
[1641341409777,0.00227369,3780.9,3780.1,0.682]
[1641341410078,0.65629527,3781.4,3780.1,0.65389527]
[1641341410278,0.65629527,3781.4,3780.4,1.3224771]
[1641341410784,0.65629527,3781.4,3780.3,1.2952414]
[1641341411381,3.11515052,3781.4,3780.2,1.33445192]
[1641341411681,2.98490268,3781.3,3780.3,0.00113685]
[1641341411879,0.66139,3781.0,3780.3,0.00113685]
[1641341412080,0.66139,3781.0,3780.1,0.0022737]
[1641341412280,0.00227369,3780.9,3780.1,0.0022737]
[1641341412481,4.11786479,3780.9,3780.1,0.0022737]
[1641341412684,0.00170527,3780.8,3780.1,0.0022737]
[1641341412915,0.38370527,3780.8,3779.9,0.00341055]
[1641341413118,0.38370527,3780.8,3779.5,0.00568424]